bitfinex/quotes_SOLUSD_20260304
["timestamp","ask_amount","ask_price","bid_price","bid_amount"]
[1772622860640,0.28432314,90.475,90.415,4.5]
[1772622860840,109.20117996,90.49,90.415,4.5]
[1772622861039,0.28432314,90.488,90.415,4.5]
[1772622861337,14.1069193,90.487,90.422,4.5]
[1772622861642,0.28432314,90.499,90.426,4.5]
[1772622861840,0.28432314,90.497,90.426,4.5]
[1772622862034,6.70124192,90.496,90.429,4.78432314]
[1772622862226,6.50117996,90.5,90.429,4.5]
[1772622862424,6.50117996,90.49,90.429,4.5]
[1772622862947,0.28432314,90.499,90.429,4.5]
[1772622863249,6.50117996,90.49,90.429,4.5]
[1772622864031,14.11225229,90.489,90.429,4.5]
[1772622864226,6.50117996,90.49,90.429,4.5]
[1772622864742,6.70743714,90.489,90.429,4.5]
[1772622865038,6.50117996,90.49,90.429,4.5]
[1772622866628,6.50117996,90.47,90.429,4.5]
[1772622866830,14.39863251,90.489,90.401,4.5]
[1772622866831,6.50117996,90.46,90.401,4.5]
[1772622867033,102.7,90.489,90.406,4.5]
[1772622867034,6.50117996,90.47,90.406,4.5]
[1772622867839,6.50117996,90.48,90.416,4.5]
[1772622868040,6.50117996,90.48,90.365,10.10662313]
[1772622868041,0.28432314,90.499,90.425,4.5]
[1772622868241,14.11431366,90.498,90.425,4.5]
[1772622868438,6.50117996,90.5,90.425,4.5]
[1772622868439,14.11431366,90.497,90.425,4.5]
[1772622868641,14.11431366,90.496,90.425,4.5]
[1772622868862,0.14216157,90.495,90.425,4.5]
[1772622869425,6.50117996,90.5,90.437,4.5]
[1772622869621,102.7,90.513,90.437,4.5]
[1772622869622,6.50117996,90.49,90.437,4.5]
[1772622870236,0.28432314,90.499,90.437,4.5]
[1772622870430,0.28432314,90.497,90.437,4.5]
[1772622870629,6.50117996,90.49,90.437,4.5]
[1772622870829,6.50117996,90.48,90.437,4.5]
[1772622871048,6.50117996,90.49,90.437,4.5]
[1772622871648,0.28432314,90.499,90.437,4.5]
[1772622871830,0.28432314,90.497,90.437,4.5]
[1772622872031,0.28432314,90.495,90.437,4.5]
[1772622872231,0.28432314,90.493,90.437,4.5]
[1772622872437,0.28432314,90.491,90.437,4.5]
[1772622873456,14.12176015,90.49,90.437,4.5]
[1772622873759,6.50117996,90.48,90.437,4.5]
[1772622874163,6.50117996,90.47,90.437,4.5]
[1772622875361,6.50117996,90.47,90.428,4.5]
[1772622875541,6.50117996,90.48,90.428,4.5]
[1772622876162,0.28432314,90.489,90.428,4.5]
[1772622876339,0.28432314,90.487,90.428,4.5]
[1772622876546,102.7,90.488,90.428,4.5]
[1772622878130,6.50117996,90.48,90.428,4.5]
[1772622879053,102.7,90.488,90.428,4.5]
[1772622879356,0.28432314,90.508,90.433,4.78432314]
[1772622879559,6.50117996,90.5,90.433,4.78432314]
[1772622880160,14.12709638,90.499,90.433,4.78432314]
[1772622880355,14.12709638,90.498,90.433,4.78432314]
[1772622880651,14.12709638,90.497,90.433,4.78432314]
[1772622880854,102.7,90.507,90.433,4.78432314]
[1772622880855,6.49805939,90.49,90.433,4.5]
[1772622881156,14.12709638,90.489,90.433,4.5]
[1772622881353,14.12709638,90.488,90.433,4.5]
[1772622881549,14.12709638,90.487,90.433,4.5]
[1772622881747,6.49805939,90.49,90.433,4.5]
[1772622881748,14.12709638,90.486,90.433,4.5]
[1772622881956,6.71388986,90.485,90.433,4.5]
[1772622882137,6.72087233,90.484,90.433,4.5]
[1772622882338,6.49805939,90.49,90.433,4.5]
[1772622882533,0.28432314,90.496,90.433,4.5]
[1772622882534,6.49805939,90.48,90.433,4.5]
[1772622882854,0.28432314,90.486,90.433,4.5]
[1772622883056,0.28432314,90.484,90.433,4.5]
[1772622883254,6.49805939,90.48,90.433,4.5]
[1772622883452,6.59805939,90.51,90.435,4.5]
[1772622883766,6.49805939,90.5,90.435,4.5]
[1772622884055,14.14568322,90.499,90.435,4.5]
[1772622884359,6.49805939,90.5,90.435,4.5]
[1772622884360,14.14568322,90.498,90.435,4.5]
[1772622884537,14.14568322,90.497,90.435,4.5]
[1772622884840,14.14568322,90.496,90.435,4.5]
[1772622885040,14.14568322,90.495,90.435,4.5]
[1772622885257,14.14568322,90.494,90.435,4.5]
[1772622885443,14.14568322,90.493,90.435,4.5]
[1772622885643,14.14568322,90.492,90.435,4.5]
[1772622885844,14.14568322,90.491,90.435,4.5]
[1772622886045,6.49805939,90.5,90.435,4.5]
[1772622886361,14.15173326,90.499,90.435,4.5]
[1772622886658,14.15173326,90.498,90.435,4.5]
[1772622886863,14.15173326,90.497,90.435,4.5]
[1772622887161,14.15173326,90.496,90.435,4.5]
[1772622887344,6.49805939,90.49,90.435,4.5]
[1772622887539,14.15173326,90.489,90.435,4.5]
[1772622887850,6.72512722,90.488,90.435,4.5]
[1772622888041,6.49805939,90.5,90.435,4.5]
[1772622888236,14.15952106,90.499,90.435,4.5]
[1772622888441,14.15952106,90.498,90.435,4.5]
[1772622888654,14.15952106,90.497,90.435,4.5]
[1772622888855,14.15952106,90.496,90.435,4.5]
[1772622889139,14.15952106,90.495,90.435,4.5]
[1772622889356,6.49805939,90.5,90.435,4.5]
[1772622889357,14.15952106,90.494,90.435,4.5]
[1772622889552,14.15952106,90.493,90.435,4.5]
[1772622889753,14.15952106,90.492,90.435,4.5]
[1772622890058,14.15952106,90.491,90.435,4.5]
[1772622890259,14.15952106,90.49,90.435,4.5]
[1772622890441,14.15952106,90.489,90.435,4.5]
[1772622890641,14.15952106,90.488,90.435,4.5]
[1772622890853,14.15952106,90.487,90.435,4.5]
[1772622891062,6.73017676,90.486,90.435,4.5]
[1772622891262,6.73017676,90.485,90.435,4.5]
[1772622891441,6.49805939,90.48,90.435,4.5]
[1772622891640,6.73017676,90.479,90.435,4.5]
[1772622892764,6.49805939,90.47,90.435,4.5]
[1772622892943,14.16549866,90.469,90.435,4.5]
[1772622893145,14.16549866,90.468,90.435,4.5]
[1772622893465,6.73017676,90.467,90.435,4.5]
[1772622893640,6.71611297,90.466,90.435,4.5]
[1772622893836,6.49805939,90.48,90.435,4.5]
[1772622894048,14.15153627,90.479,90.435,4.5]
[1772622894255,14.15153627,90.478,90.435,4.5]
[1772622894452,14.15153627,90.477,90.435,4.5]
[1772622894661,14.15153627,90.476,90.435,4.5]
[1772622894861,14.15153627,90.475,90.435,4.5]
[1772622895056,14.15153627,90.474,90.435,4.5]
[1772622895254,14.15153627,90.473,90.435,4.5]
[1772622895453,14.15153627,90.472,90.435,4.5]
[1772622895764,14.15153627,90.471,90.435,4.5]
[1772622895955,14.15153627,90.47,90.435,4.5]
[1772622896159,14.15153627,90.469,90.435,4.5]
[1772622896456,6.71617142,90.468,90.435,4.5]
[1772622896657,6.71617142,90.467,90.435,4.5]
[1772622896843,6.49805939,90.48,90.435,4.5]
[1772622897046,14.15018309,90.479,90.435,4.5]
[1772622897337,14.15018309,90.478,90.435,4.5]
[1772622897545,14.15018309,90.477,90.435,4.5]
[1772622897742,14.15018309,90.476,90.435,4.5]
[1772622897960,14.15018309,90.475,90.435,4.5]
[1772622898161,14.15018309,90.474,90.435,4.5]
[1772622898360,14.15018309,90.473,90.435,4.5]
[1772622898548,14.15018309,90.472,90.435,4.5]
[1772622898749,14.15018309,90.471,90.435,4.5]
[1772622898950,14.15018309,90.47,90.435,4.5]
[1772622899142,14.15018309,90.469,90.435,4.5]
[1772622899344,14.15018309,90.468,90.435,4.5]
[1772622899544,6.715527,90.467,90.435,4.5]
[1772622899744,6.49805939,90.48,90.435,4.5]
[1772622899962,14.15115705,90.479,90.435,4.5]
[1772622900142,14.15115705,90.478,90.435,4.5]
[1772622900343,0.28432314,90.498,90.435,4.5]
[1772622900545,116.84979265,90.497,90.435,4.5]
[1772622900859,14.14979265,90.496,90.435,4.5]
[1772622901057,7.43478676,90.495,90.435,4.5]
[1772622901259,7.43478676,90.494,90.435,4.5]
[1772622901437,7.43478676,90.493,90.435,4.5]
[1772622901641,6.49805939,90.49,90.435,4.5]
[1772622901843,6.49805939,90.47,90.413,4.5]
[1772622902049,102.7,90.497,90.415,4.5]
[1772622902050,6.49805939,90.44,90.415,4.5]
[1772622902245,6.49805939,90.44,90.391,4.5]
[1772622902652,7.43768802,90.439,90.391,4.5]
[1772622902852,7.43768802,90.438,90.391,4.5]
[1772622903067,7.43768802,90.437,90.391,4.5]
[1772622903262,6.49805939,90.44,90.391,4.5]
[1772622903465,7.43562817,90.439,90.391,4.5]
[1772622903661,9.26296109,90.461,90.391,4.5]
[1772622903871,13.93356628,90.46,90.393,4.5]
[1772622904051,0.28432314,90.461,90.395,4.5]
[1772622904052,6.49805939,90.45,90.395,4.5]
[1772622904255,7.43550689,90.449,90.395,4.5]
[1772622904466,7.43550689,90.448,90.395,4.5]
[1772622904667,7.43550689,90.447,90.395,4.5]
[1772622904866,7.43550689,90.446,90.395,4.5]
[1772622905054,7.43550689,90.445,90.395,4.5]
[1772622905254,7.43550689,90.444,90.395,4.5]
[1772622905571,6.49805939,90.45,90.395,4.5]
[1772622905773,7.43129648,90.449,90.395,4.5]
[1772622906069,7.43129648,90.448,90.395,4.5]
[1772622906273,6.49805939,90.45,90.395,4.5]
[1772622906274,7.43129648,90.447,90.395,4.5]
[1772622906572,7.43129648,90.446,90.395,4.5]
[1772622906765,7.43129648,90.445,90.395,4.5]
[1772622907068,7.43129648,90.444,90.395,4.5]
[1772622907269,7.43129648,90.443,90.395,4.5]
[1772622907467,6.49805939,90.47,90.405,4.5]
[1772622907771,7.42298206,90.469,90.405,4.5]
[1772622907946,6.49805939,90.45,90.405,4.5]
[1772622908154,6.49805939,90.44,90.405,4.5]
[1772622908364,0.28432314,90.467,90.405,4.5]
[1772622908567,6.49805939,90.45,90.405,4.5]
[1772622908751,7.42258417,90.449,90.405,4.5]
[1772622908951,6.49805939,90.45,90.405,4.5]
[1772622909169,0.28432314,90.465,90.381,3.69383402]
[1772622909170,6.49805939,90.44,90.386,4.5]
[1772622911863,6.49805939,90.45,90.386,4.5]
[1772622912169,7.41711727,90.449,90.386,4.5]
[1772622912352,6.49805939,90.44,90.386,4.5]
[1772622912548,6.49805939,90.43,90.386,4.5]
[1772622914057,6.49805939,90.44,90.386,4.5]
[1772622914371,102.7,90.468,90.386,4.5]
[1772622914573,6.49805939,90.46,90.386,4.5]
[1772622914752,6.49805939,90.45,90.386,4.5]
[1772622914949,6.49805939,90.44,90.386,4.5]
[1772622915353,6.49805939,90.43,90.386,4.5]
[1772622916483,6.49805939,90.44,90.386,4.5]
[1772622917361,0.28432314,90.449,90.386,4.5]
[1772622917562,0.28432314,90.447,90.386,4.5]
[1772622917785,0.28432314,90.445,90.386,4.5]
[1772622917969,0.28432314,90.459,90.386,4.5]
[1772622918170,6.49805939,90.45,90.386,4.5]
[1772622918369,7.40797911,90.449,90.386,4.5]
[1772622918569,6.49805939,90.44,90.386,4.5]
[1772622918882,6.49805939,90.45,90.386,4.5]
[1772622921064,0.28432314,90.459,90.386,4.5]
[1772622921276,0.28432314,90.457,90.386,4.5]
[1772622921467,0.28432314,90.455,90.386,4.5]
[1772622922081,6.49805939,90.45,90.386,4.5]
[1772622922265,6.49805939,90.44,90.386,4.5]
[1772622923773,0.28432314,90.449,90.386,4.5]
[1772622923968,6.49805939,90.46,90.386,4.5]
[1772622924182,7.40550424,90.459,90.396,4.5]
[1772622924377,7.40550424,90.458,90.396,4.5]
[1772622924586,102.7,90.468,90.396,4.5]
[1772622924779,7.39709052,90.467,90.396,4.5]
[1772622924985,7.53925209,90.466,90.396,4.5]
[1772622925167,0.28432314,90.464,90.396,4.5]
[1772622925483,0.28432314,90.462,90.396,4.5]
[1772622925782,0.28432314,90.46,90.396,4.5]
[1772622925986,102.7,90.468,90.396,4.5]
[1772622925987,2.73088816,90.45,90.396,4.5]
[1772622926684,2.73088816,90.44,90.396,4.5]
[1772622930384,2.73088816,90.43,90.396,4.5]
[1772622930583,2.73088816,90.42,90.381,4.5]
[1772622932395,0.28432314,90.437,90.381,4.5]
[1772622932596,7.40924401,90.436,90.381,4.5]
[1772622932783,7.40924401,90.435,90.381,4.5]
[1772622932989,7.40924401,90.434,90.381,4.5]
[1772622933187,7.40924401,90.433,90.381,4.5]
[1772622933395,7.40924401,90.432,90.381,4.5]
[1772622933591,102.7,90.438,90.381,4.5]
[1772622933780,7.41479855,90.437,90.381,4.5]
[1772622933975,7.41479855,90.436,90.384,0.28432314]
[1772622934182,0.28432314,90.459,90.386,4.5]
[1772622934393,0.28432314,90.459,90.385,3.69383402]
[1772622934394,7.41579959,90.458,90.396,4.5]
[1772622934589,7.41579959,90.457,90.396,4.5]
[1772622934894,7.41579959,90.456,90.396,4.5]
[1772622935189,7.41579959,90.455,90.396,4.5]
[1772622935399,7.41579959,90.454,90.396,4.5]
[1772622935573,2.73088816,90.45,90.396,4.5]
[1772622935777,7.41579959,90.449,90.396,4.5]
[1772622935983,7.41579959,90.448,90.396,4.5]
[1772622936179,7.41579959,90.447,90.396,4.5]
[1772622936381,7.41579959,90.446,90.396,4.5]
[1772622936590,7.41579959,90.445,90.396,4.5]
[1772622936791,0.28432314,90.459,90.396,4.5]
[1772622936991,0.28432314,90.457,90.396,4.5]
[1772622937193,0.28432314,90.455,90.396,4.5]
[1772622937399,0.28432314,90.453,90.396,4.5]
[1772622937699,0.28432314,90.451,90.396,4.5]
[1772622937995,7.42167414,90.45,90.396,4.5]
[1772622938790,10.1525623,90.45,90.396,4.5]
[1772622939093,7.42167414,90.449,90.396,4.5]
[1772622940296,7.42167414,90.448,90.396,4.5]
[1772622940483,7.42167414,90.447,90.396,4.5]
[1772622940794,7.42167414,90.446,90.396,4.5]
[1772622941093,7.42167414,90.445,90.396,4.5]
[1772622941296,7.42167414,90.444,90.396,4.5]
[1772622941498,7.42167414,90.443,90.396,4.5]
[1772622941699,7.42167414,90.442,90.396,4.5]
[1772622941897,7.42167414,90.441,90.396,4.5]
[1772622942094,7.42167414,90.44,90.396,4.5]
[1772622942293,7.42167414,90.439,90.396,4.5]
[1772622942506,7.42167414,90.438,90.396,4.5]
[1772622942801,2.73217386,90.45,90.396,4.5]
[1772622942980,7.43292356,90.449,90.396,4.5]
[1772622943180,7.43292398,90.448,90.396,4.5]
[1772622943387,7.43292398,90.447,90.396,4.5]
[1772622943588,7.43292398,90.446,90.396,4.5]
[1772622943918,7.43292398,90.445,90.396,4.5]
[1772622944101,7.43292398,90.444,90.396,4.5]
[1772622944298,7.43292398,90.443,90.396,4.5]
[1772622944498,7.43292398,90.442,90.396,4.5]
[1772622944702,7.43292398,90.441,90.396,4.5]
[1772622944902,7.43292398,90.44,90.396,4.5]
[1772622945099,7.43292398,90.439,90.396,4.5]
[1772622945285,2.73217386,90.45,90.396,4.5]
[1772622945286,7.43292398,90.438,90.396,4.5]
[1772622945597,7.43292398,90.437,90.396,4.5]
[1772622945806,7.43292398,90.436,90.396,4.5]
[1772622945988,7.43292398,90.435,90.396,4.5]
[1772622946305,7.43292398,90.434,90.396,4.5]
[1772622946505,7.43292398,90.433,90.396,4.5]
[1772622946808,7.43292398,90.432,90.396,4.5]
[1772622946988,7.43292398,90.431,90.396,4.5]
[1772622947189,7.43292398,90.43,90.396,4.5]
[1772622947387,7.43292398,90.429,90.396,4.5]
[1772622947594,7.43292398,90.428,90.396,4.5]
[1772622947892,7.43292398,90.427,90.396,4.5]
[1772622948206,7.43292398,90.426,90.396,4.5]
[1772622948407,0.28432314,90.45,90.396,4.5]
[1772622948603,7.44849062,90.449,90.396,4.5]
[1772622948907,7.44849062,90.448,90.396,4.5]
[1772622949202,7.44849062,90.447,90.396,4.5]
[1772622949404,7.44849062,90.446,90.396,4.5]
[1772622949712,7.44849062,90.445,90.396,4.5]
[1772622950007,7.44849062,90.444,90.396,4.5]
[1772622950200,7.44849062,90.443,90.396,4.5]
[1772622950401,7.44849062,90.442,90.396,4.5]
[1772622950604,12.34080084,90.471,90.38,11.27940167]
[1772622950605,4.15128311,90.469,90.406,4.3033249]
[1772622950807,4.15128311,90.476,90.415,4.3033249]
[1772622954921,12.44080084,90.51,90.426,4.3033249]
[1772622954922,4.15128311,90.489,90.426,4.3033249]
[1772622955119,4.15128311,90.489,90.436,4.3033249]
[1772622956799,4.15128311,90.479,90.436,4.3033249]
[1772622958420,4.15128311,90.489,90.436,4.3033249]
[1772622960722,2.83217386,90.51,90.436,4.3033249]
[1772622960723,4.15128311,90.479,90.436,4.3033249]
[1772622960907,0.28432314,90.488,90.428,4.3033249]
[1772622960908,4.15128311,90.469,90.428,4.3033249]
[1772622961220,4.15128311,90.469,90.421,4.3033249]
[1772622961918,4.15128311,90.459,90.421,4.3033249]
[1772622962103,4.15128311,90.449,90.409,4.3033249]
[1772622962308,4.15128311,90.439,90.381,4.3033249]
[1772622962609,4.15128311,90.439,90.385,4.3033249]
[1772622963207,4.15128311,90.437,90.385,4.3033249]
[1772622963527,2.73217386,90.44,90.385,4.3033249]
[1772622963528,4.15128311,90.435,90.385,4.3033249]
[1772622964732,4.15128311,90.429,90.385,4.3033249]
[1772622965730,4.15128311,90.449,90.385,4.3033249]
[1772622966224,3.69383402,90.481,90.34,1.30692937]
[1772622966225,4.15128311,90.457,90.406,4.3033249]
[1772622969813,4.15128311,90.469,90.406,4.3033249]
[1772622970126,2.73217386,90.47,90.406,4.3033249]
[1772622970127,4.15128311,90.467,90.406,4.3033249]
[1772622970308,4.15128311,90.465,90.406,4.3033249]
[1772622970507,4.15128311,90.463,90.406,4.3033249]
[1772622970708,4.15128311,90.461,90.406,4.3033249]
[1772622970930,4.15128311,90.459,90.406,4.3033249]
[1772622971131,4.15128311,90.457,90.406,4.3033249]
[1772622971328,4.15128311,90.455,90.406,4.3033249]
[1772622971527,4.15128311,90.453,90.406,4.3033249]
[1772622971711,4.15128311,90.451,90.406,4.3033249]
[1772622971911,4.15128311,90.449,90.406,4.3033249]
[1772622972106,4.15128311,90.447,90.406,4.3033249]
[1772622972326,4.15128311,90.445,90.406,4.3033249]
[1772622972534,4.15128311,90.443,90.406,4.3033249]
[1772622973116,4.15128311,90.441,90.406,4.3033249]
[1772622973511,4.15128311,90.464,90.406,4.3033249]
[1772622973831,7.39971838,90.463,90.406,4.3033249]
[1772622974027,4.15128311,90.468,90.406,4.3033249]
[1772622974222,4.15128311,90.466,90.406,4.3033249]
[1772622974919,4.15128311,90.466,90.407,5.10909883]
[1772622975119,4.15128311,90.486,90.422,4.3033249]
[1772622975421,4.15128311,90.486,90.426,4.3033249]
[1772622975624,4.15128311,90.475,90.426,4.3033249]
[1772622977534,2.63275855,90.515,90.401,3.69383402]
[1772622977834,2.63275855,90.515,90.35,36.00638447]
[1772622977835,4.49999678,90.605,90.515,4.82477569]
[1772622978137,6.50150799,90.67,90.6,4.3033249]
[1772622978327,6.50150799,90.68,90.615,9.21170297]
[1772622978520,7.21606815,90.718,90.616,2.09211747]
[1772622978521,0.28432314,90.659,90.616,2.09211747]
[1772622978713,6.50150799,90.65,90.584,9.21170297]
[1772622978918,6.50150799,90.64,90.584,9.21170297]
[1772622979115,6.50150799,90.62,90.568,4.5]
[1772622979616,4.82477569,90.661,90.542,4.5]
[1772622979617,6.50150799,90.61,90.542,4.5]
[1772622979816,3.69383402,90.631,90.522,92.19527404]
[1772622979817,6.50150799,90.58,90.522,92.19527404]
[1772622980021,0.28432314,90.569,90.522,92.19527404]
[1772622980333,3.69383402,90.601,90.522,92.19527404]
[1772622980334,0.28432314,90.567,90.523,4.5]
[1772622980531,0.28432314,90.565,90.523,4.5]
[1772622980741,0.28432314,90.563,90.523,4.5]
[1772622980916,0.28432314,90.561,90.523,4.5]
[1772622981116,8.15621742,90.56,90.523,4.5]
[1772622981318,8.15621742,90.559,90.523,4.5]
[1772622981534,8.15621742,90.558,90.523,4.5]
[1772622981737,8.15621742,90.557,90.523,4.5]
[1772622982038,8.15621742,90.556,90.523,4.5]
[1772622982242,8.15621742,90.555,90.523,4.5]
[1772622982539,0.28432314,90.553,90.522,87.69527404]
[1772622982737,0.28432314,90.551,90.522,87.69527404]
[1772622982942,8.15621742,90.55,90.522,87.69527404]
[1772622983242,8.15621742,90.549,90.522,79.58184958]
[1772622983433,8.15621742,90.548,90.522,79.58184958]
[1772622983635,8.15621742,90.547,90.522,79.58184958]
[1772622983820,8.15621742,90.546,90.522,79.58184958]
[1772622984021,8.15621742,90.545,90.522,79.58184958]
[1772622984227,8.15621742,90.544,90.522,79.58184958]
[1772622984428,3.69383402,90.591,90.522,79.58184958]
[1772622984429,8.44054056,90.543,90.522,79.58184958]
[1772622984740,0.28432314,90.541,90.522,79.58184958]
[1772622984923,8.15621742,90.54,90.522,79.58184958]
[1772622985123,8.15621742,90.539,90.522,79.58184958]
[1772622985430,8.15621742,90.538,90.522,79.58184958]
[1772622985630,0.28432314,90.559,90.522,79.58184958]
[1772622985832,0.28432314,90.557,90.522,79.58184958]
[1772622986026,0.28432314,90.555,90.522,79.58184958]
[1772622986243,0.28432314,90.553,90.522,79.58184958]
[1772622986423,3.69383402,90.591,90.522,79.58184958]
[1772622986424,0.28432314,90.539,90.522,79.58184958]
[1772622986624,0.28432314,90.537,90.522,79.58184958]
[1772622986822,0.28432314,90.535,90.522,79.58184958]
[1772622987138,0.28432314,90.533,90.522,79.58184958]
[1772622987341,0.28432314,90.531,90.522,79.58184958]
[1772622987541,8.12652833,90.53,90.522,79.58184958]
[1772622987842,6.50150799,90.54,90.522,79.58184958]
[1772622987843,0.28432314,90.528,90.522,79.58184958]
[1772622988046,0.28432314,90.526,90.522,79.58184958]
[1772622988424,0.28432314,90.524,90.522,79.58184958]
[1772622988635,0.28432314,90.539,90.522,79.58184958]
[1772622988841,0.28432314,90.537,90.522,79.58184958]
[1772622989042,6.50150799,90.54,90.522,79.58184958]
[1772622989043,0.28432314,90.535,90.522,79.58184958]
[1772622989242,0.28432314,90.533,90.522,79.58184958]
[1772622989448,0.28432314,90.531,90.522,79.58184958]
[1772622989623,8.12264696,90.53,90.522,79.58184958]
[1772622989820,8.12264696,90.529,90.522,79.58184958]
[1772622990023,8.12264696,90.528,90.522,79.58184958]
[1772622990220,0.28432314,90.549,90.522,79.58184958]
[1772622990439,0.28432314,90.547,90.522,79.58184958]
[1772622990641,0.28432314,90.545,90.522,79.58184958]
[1772622990838,0.28432314,90.543,90.522,79.58184958]
[1772622991042,0.28432314,90.541,90.522,79.58184958]
[1772622991240,14.62028581,90.54,90.522,79.58184958]
[1772622991452,0.28432314,90.538,90.522,79.58184958]
[1772622991646,0.28432314,90.536,90.522,79.58184958]
[1772622991829,0.28432314,90.534,90.522,79.58184958]
[1772622992030,0.28432314,90.532,90.522,79.58184958]
[1772622992639,0.28432314,90.53,90.522,79.58184958]
[1772622992936,8.11543245,90.529,90.522,79.58184958]
[1772622993241,8.11543245,90.528,90.522,79.58184958]
[1772622993434,0.28432314,90.53,90.522,79.58184958]
[1772622993435,8.11543245,90.527,90.522,79.58184958]
[1772622993627,0.28432314,90.53,90.522,79.58184958]
[1772622993628,0.28432314,90.525,90.522,79.58184958]
[1772622993827,0.28432314,90.523,90.522,79.58184958]
[1772622994044,8.39975559,90.523,90.522,79.58184958]
[1772622994834,8.25759402,90.523,90.522,79.58184958]
[1772622995148,3.69383402,90.547,90.522,79.58184958]
[1772622995528,102.7,90.564,90.522,79.58184958]
[1772622995730,6.50150799,90.55,90.522,79.58184958]
[1772622996957,0.14216157,90.549,90.523,4.5]
[1772622997249,6.50150799,90.57,90.523,4.5]
[1772622997444,0.28432314,90.569,90.523,4.5]
[1772622997631,0.28432314,90.559,90.523,4.5]
[1772622997833,0.14216157,90.559,90.523,4.5]
[1772622998037,6.50150799,90.56,90.523,4.5]
[1772622998038,0.28432314,90.569,90.523,4.5]
[1772622998231,3.69383402,90.595,90.523,4.5]
[1772622998449,6.50150799,90.58,90.523,4.5]
[1772622998647,3.69383402,90.597,90.523,4.5]
[1772622998850,0.28432314,90.579,90.523,4.5]
[1772622999251,0.28432314,90.569,90.523,4.5]
[1772623000332,0.28432314,90.559,90.522,79.58184958]
[1772623000833,0.28432314,90.549,90.522,79.58184958]
[1772623001246,102.7,90.584,90.522,79.58184958]
[1772623001247,0.28432314,90.58,90.523,4.5]
[1772623001537,0.28432314,90.569,90.523,4.5]
[1772623001928,0.28432314,90.559,90.523,4.5]
[1772623004854,0.28432314,90.549,90.522,79.58184958]
[1772623005040,102.7,90.559,90.523,4.5]
[1772623005246,0.28432314,90.558,90.523,4.5]
[1772623005848,0.28432314,90.569,90.523,4.5]
[1772623006556,0.28432314,90.559,90.523,4.5]
[1772623007058,0.28432314,90.557,90.523,4.5]
[1772623007257,0.28432314,90.555,90.523,4.5]
[1772623007435,8.0940795,90.554,90.523,4.5]
[1772623007861,0.28432314,90.549,90.522,79.58184958]
[1772623008064,6.49088003,90.54,90.522,79.58184958]
[1772623008264,8.37840264,90.539,90.522,79.58184958]
[1772623008562,0.28432314,90.537,90.522,79.58184958]
[1772623008736,0.28432314,90.535,90.522,79.58184958]
[1772623008936,8.0940795,90.534,90.522,79.58184958]
[1772623010264,0.28432314,90.532,90.522,79.58184958]
[1772623010463,6.77520317,90.53,90.522,79.58184958]
[1772623010666,0.28432314,90.528,90.522,79.58184958]
[1772623010846,0.28432314,90.526,90.522,79.58184958]
[1772623011043,0.28432314,90.524,90.488,4.5]
[1772623011248,0.28432314,90.519,90.488,4.5]
[1772623011477,0.28432314,90.517,90.488,4.5]
[1772623011650,0.28432314,90.517,90.443,24.76486086]
[1772623011651,0.28432314,90.509,90.447,4.5]
[1772623011957,0.28432314,90.499,90.447,4.5]
[1772623012163,0.28432314,90.497,90.447,4.5]
[1772623012369,7.41164168,90.496,90.447,4.5]
[1772623012566,3.69383402,90.507,90.447,4.5]
[1772623012745,6.49088003,90.5,90.447,4.5]
[1772623012946,6.49088003,90.49,90.447,4.5]
[1772623014372,0.28432314,90.489,90.447,4.5]
[1772623015168,6.87697993,90.54,90.447,4.5]
[1772623015352,0.28432314,90.519,90.447,4.5]
[1772623017754,0.28432314,90.517,90.447,4.5]
[1772623021369,0.28432314,90.517,90.456,4.5]
[1772623021772,0.28432314,90.499,90.456,4.5]
[1772623021979,0.28432314,90.479,90.444,4.5]
[1772623022156,0.28432314,90.469,90.435,4.5]
[1772623023273,0.28432314,90.479,90.435,4.5]
[1772623024270,0.28432314,90.469,90.435,4.5]
[1772623024475,7.95055618,90.468,90.435,4.5]